Workbook

Sheet Employee information
A1: Employee Information
A2: [Company Name]
A3: Employee ID | B3: Employee Name | C3: Hourly Wage | D3: Tax Status | E3: Federal Allowance (From W-4) | F3: State Tax | G3: Federal Income Tax (Based on Federal Allowance) | H3: Social Security Tax | I3: Medicare Tax | J3: Total Taxes Withheld | K3: Insurance Deduction | L3: Other Regular Deduction | M3: Total Regular Deductions (Excluding taxes)
A4: 1 | B4: [Employee 1] | C4: $10.00 | D4: 1 | E4: 4 | F4: 2.30% | G4: 28.00% | H4: 6.30% | I4: 1.45% | J4: =EmployeeInformation[State Tax]+EmployeeInformation[Federal Income Tax (Based on Federal Allowance)]+EmployeeInformation[Social Security Tax]+EmployeeInformation[Medicare Tax] -> 38.05% | K4: $20.00 | L4: $40.00 | M4: =EmployeeInformation[Insurance Deduction]+EmployeeInformation[Other Regular Deduction] -> $60.00
A5: 2 | B5: [Employee 2] | C5: $13.00 | D5: 1 | E5: 4 | F5: 2.30% | G5: 28.00% | H5: 6.30% | I5: 1.45% | J5: =EmployeeInformation[State Tax]+EmployeeInformation[Federal Income Tax (Based on Federal Allowance)]+EmployeeInformation[Social Security Tax]+EmployeeInformation[Medicare Tax] -> 38.05% | K5: $20.00 | L5: $52.00 | M5: =EmployeeInformation[Insurance Deduction]+EmployeeInformation[Other Regular Deduction] -> $72.00
A6: 3 | B6: [Employee 3] | C6: $10.00 | D6: 1 | E6: 4 | F6: 2.30% | G6: 28.00% | H6: 6.30% | I6: 1.45% | J6: =EmployeeInformation[State Tax]+EmployeeInformation[Federal Income Tax (Based on Federal Allowance)]+EmployeeInformation[Social Security Tax]+EmployeeInformation[Medicare Tax] -> 38.05% | K6: $20.00 | L6: 0 | M6: =EmployeeInformation[Insurance Deduction]+EmployeeInformation[Other Regular Deduction] -> $20.00

Sheet Payroll calculator
A1: Payroll calculator
A2: ='Employee information'!$A$2 -> [Company Name] | G2: Period Ending: | H2: =TODAY() -> 4230400.00%
A3: Employee ID | B3: Employee Name | C3: Regular Hours Worked | D3: Vacation Hours | E3: Sick Hours | F3: Overtime Hours | G3: Overtime Rate | H3: Gross Pay | I3: Taxes and Deductions | J3: Other Deduction | K3: Net Pay
A4: 1 | B4: =VLOOKUP(A4,EmployeeInformation[],2,FALSE) -> [Employee 1] | C4: 50.00 | D4: 5.00 | E4: 1.00 | H4: =(VLOOKUP(A4,EmployeeInformation[],3,FALSE)*(PayrollCalculator[Regular Hours Worked]+PayrollCalculator[Vacation Hours]+PayrollCalculator[Sick Hours])+PayrollCalculator[Overtime Hours]*PayrollCalculator[Overtime Rate]) -> $560.00 | I4: =VLOOKUP(A4,EmployeeInformation[],10,FALSE)*PayrollCalculator[Gross Pay]+EmployeeInformation[Total Regular Deductions (Excluding taxes)] -> $273.08 | J4: $20.00 | K4: =PayrollCalculator[Gross Pay]-PayrollCalculator[Taxes and Deductions ]-PayrollCalculator[Other Deduction] -> $266.92
A5: 2 | B5: =VLOOKUP(A5,EmployeeInformation[],2,FALSE) -> [Employee 2] | C5: 40.00 | D5: 0.00 | E5: 0.00 | H5: =(VLOOKUP(A5,EmployeeInformation[],3,FALSE)*(PayrollCalculator[Regular Hours Worked]+PayrollCalculator[Vacation Hours]+PayrollCalculator[Sick Hours])+PayrollCalculator[Overtime Hours]*PayrollCalculator[Overtime Rate]) -> $520.00 | I5: =VLOOKUP(A5,EmployeeInformation[],10,FALSE)*PayrollCalculator[Gross Pay]+EmployeeInformation[Total Regular Deductions (Excluding taxes)] -> $269.86 | J5: $52.00 | K5: =PayrollCalculator[Gross Pay]-PayrollCalculator[Taxes and Deductions ]-PayrollCalculator[Other Deduction] -> $198.14
A6: 3 | B6: =VLOOKUP(A6,EmployeeInformation[],2,FALSE) -> [Employee 3] | C6: 52.00 | D6: 0.00 | E6: 0.00 | F6: 2.00 | G6: $20.00 | H6: =(VLOOKUP(A6,EmployeeInformation[],3,FALSE)*(PayrollCalculator[Regular Hours Worked]+PayrollCalculator[Vacation Hours]+PayrollCalculator[Sick Hours])+PayrollCalculator[Overtime Hours]*PayrollCalculator[Overtime Rate]) -> $560.00 | I6: =VLOOKUP(A6,EmployeeInformation[],10,FALSE)*PayrollCalculator[Gross Pay]+EmployeeInformation[Total Regular Deductions (Excluding taxes)] -> $233.08 | J6: $20.00 | K6: =PayrollCalculator[Gross Pay]-PayrollCalculator[Taxes and Deductions ]-PayrollCalculator[Other Deduction] -> $306.92

Sheet Individual paystubs
C1: =('Employee information'!$A$2) -> [Company Name]
C2: Period: | D2: ='Payroll calculator'!$H$2 -> 4230400.00% | E2: Employee Name | F2: =IFERROR(VLOOKUP(H2,EmployeeInformation[],2),"") -> [Employee 1] | G2: Employee ID | H2: 1
C4: Tax Status | D4: =IFERROR(VLOOKUP(H2,EmployeeInformation[],4),"") -> 1 | E4: Federal Allowance (From W-4) | F4: =IFERROR(VLOOKUP(H2,EmployeeInformation[],5,FALSE),"") -> 4 | G4: Hours Worked | H4: =IFERROR(VLOOKUP(H2,PayrollCalculator[],3,FALSE),"") -> 50
C5: Hourly Rate | D5: =IFERROR(VLOOKUP(H2,EmployeeInformation[],3,FALSE),"") -> $10.00 | E5: Overtime Rate | F5: =IFERROR(VLOOKUP(H2,PayrollCalculator[],7,FALSE),"") -> 0 | G5: Sick Hours | H5: =IFERROR(VLOOKUP(H2,PayrollCalculator[],5,FALSE),"") -> 1
C6: Social Security Tax | D6: =IFERROR(IFERROR(VLOOKUP(H2,EmployeeInformation[],8,FALSE),"")*H8,"") -> $35.28 | E6: Federal Income Tax | F6: =IFERROR(IFERROR(VLOOKUP(H2,EmployeeInformation[],7,FALSE),"")*H8,"") -> $156.80 | G6: Vacation Hours | H6: =IFERROR(VLOOKUP(H2,PayrollCalculator[],4,FALSE),"") -> 5
C7: Medicare Tax | D7: =IFERROR(IFERROR(VLOOKUP(H2,EmployeeInformation[],9,FALSE),"")*H8,"") -> $8.12 | E7: State Tax | F7: =IFERROR(IFERROR(VLOOKUP(H2,EmployeeInformation[],6,FALSE),"")*H8,"") -> $12.88 | G7: Overtime Hours | H7: =IFERROR(VLOOKUP(H2,PayrollCalculator[],6,FALSE),"") -> 0
C8: Insurance Deduction | D8: =IFERROR(VLOOKUP(H2,EmployeeInformation[],11,FALSE),"") -> $20.00 | E8: Other Regular Deduction | F8: =IFERROR(VLOOKUP(H2,EmployeeInformation[],12,FALSE),"") -> $40.00 | G8: Gross Pay | H8: =IFERROR(VLOOKUP(H2,PayrollCalculator[],8,FALSE),"") -> $560.00
C9: Total Taxes and Regular Deductions | D9: =IFERROR(SUM(F6:F8)+SUM(D6:D8),"") -> $273.08 | E9: Other Deduction | F9: =IFERROR(VLOOKUP(H2,PayrollCalculator[],10,FALSE),"") -> $20.00 | G9: Total Taxes and Deductions | H9: =IFERROR(IFERROR(VLOOKUP(H2,PayrollCalculator[],9,FALSE),"")+F9,"") -> $293.08
G10: Net Pay | H10: =IFERROR(VLOOKUP(H2,PayrollCalculator[],11,FALSE),"") -> $266.92
C13: =('Employee information'!$A$2) -> [Company Name]
C14: Period: | D14: ='Payroll calculator'!$H$2 -> 4230400.00% | E14: Employee Name | F14: =IFERROR(VLOOKUP(H14,EmployeeInformation[],2),"") -> [Employee 2] | G14: Employee ID | H14: 2
C16: Tax Status | D16: =IFERROR(VLOOKUP(H14,EmployeeInformation[],4),"") -> 1 | E16: Federal Allowance (From W-4) | F16: =IFERROR(VLOOKUP(H14,EmployeeInformation[],5,FALSE),"") -> 4 | G16: Hours Worked | H16: =IFERROR(VLOOKUP(H14,PayrollCalculator[],3,FALSE),"") -> 40
C17: Hourly Rate | D17: =IFERROR(VLOOKUP(H14,EmployeeInformation[],3,FALSE),"") -> $13.00 | E17: Overtime Rate | F17: =IFERROR(VLOOKUP(H14,PayrollCalculator[],7,FALSE),"") -> 0 | G17: Sick Hours | H17: =IFERROR(VLOOKUP(H14,PayrollCalculator[],5,FALSE),"") -> 0
C18: Social Security Tax | D18: =IFERROR(IFERROR(VLOOKUP(H14,EmployeeInformation[],8,FALSE),"")*H20,"") -> $32.76 | E18: Federal Income Tax | F18: =IFERROR(IFERROR(VLOOKUP(H14,EmployeeInformation[],7,FALSE),"")*H20,"") -> $145.60 | G18: Vacation Hours | H18: =IFERROR(VLOOKUP(H14,PayrollCalculator[],4,FALSE),"") -> 0
C19: Medicare Tax | D19: =IFERROR(IFERROR(VLOOKUP(H14,EmployeeInformation[],9,FALSE),"")*H20,"") -> $7.54 | E19: State Tax | F19: =IFERROR(IFERROR(VLOOKUP(H14,EmployeeInformation[],6,FALSE),"")*H20,"") -> $11.96 | G19: Overtime Hours | H19: =IFERROR(VLOOKUP(H14,PayrollCalculator[],6,FALSE),"") -> 0
C20: Insurance Deduction | D20: =IFERROR(VLOOKUP(H14,EmployeeInformation[],11,FALSE),"") -> $20.00 | E20: Other Regular Deduction | F20: =IFERROR(VLOOKUP(H14,EmployeeInformation[],12,FALSE),"") -> $52.00 | G20: Gross Pay | H20: =IFERROR(VLOOKUP(H14,PayrollCalculator[],8,FALSE),"") -> $520.00
C21: Total Taxes and Regular Deductions | D21: =IFERROR(SUM(F18:F20)+SUM(D18:D20),"") -> $269.86 | E21: Other Deduction | F21: =IFERROR(VLOOKUP(H14,PayrollCalculator[],10,FALSE),"") -> $52.00 | G21: Total Taxes and Deductions | H21: =IFERROR(IFERROR(VLOOKUP(H14,PayrollCalculator[],9,FALSE),"")+F21,"") -> $321.86
G22: Net Pay | H22: =IFERROR(VLOOKUP(H14,PayrollCalculator[],11,FALSE),"") -> $198.14
C25: =('Employee information'!$A$2) -> [Company Name]
C26: Period: | D26: ='Payroll calculator'!$H$2 -> 4230400.00% | E26: Employee Name | F26: =IFERROR(VLOOKUP(H26,EmployeeInformation[],2),"") -> [Employee 3] | G26: Employee ID | H26: 3
C28: Tax Status | D28: =IFERROR(VLOOKUP(H26,EmployeeInformation[],4),"") -> 1 | E28: Federal Allowance (From W-4) | F28: =IFERROR(VLOOKUP(H26,EmployeeInformation[],5,FALSE),"") -> 4 | G28: Hours Worked | H28: =IFERROR(VLOOKUP(H26,PayrollCalculator[],3,FALSE),"") -> 52
C29: Hourly Rate | D29: =IFERROR(VLOOKUP(H26,EmployeeInformation[],3,FALSE),"") -> $10.00 | E29: Overtime Rate | F29: =IFERROR(VLOOKUP(H26,PayrollCalculator[],7,FALSE),"") -> $20.00 | G29: Sick Hours | H29: =IFERROR(VLOOKUP(H26,PayrollCalculator[],5,FALSE),"") -> 0
C30: Social Security Tax | D30: =IFERROR(IFERROR(VLOOKUP(H26,EmployeeInformation[],8,FALSE),"")*H32,"") -> $35.28 | E30: Federal Income Tax | F30: =IFERROR(IFERROR(VLOOKUP(H26,EmployeeInformation[],7,FALSE),"")*H32,"") -> $156.80 | G30: Vacation Hours | H30: =IFERROR(VLOOKUP(H26,PayrollCalculator[],4,FALSE),"") -> 0
C31: Medicare Tax | D31: =IFERROR(IFERROR(VLOOKUP(H26,EmployeeInformation[],9,FALSE),"")*H32,"") -> $8.12 | E31: State Tax | F31: =IFERROR(IFERROR(VLOOKUP(H26,EmployeeInformation[],6,FALSE),"")*H32,"") -> $12.88 | G31: Overtime Hours | H31: =IFERROR(VLOOKUP(H26,PayrollCalculator[],6,FALSE),"") -> 2
C32: Insurance Deduction | D32: =IFERROR(VLOOKUP(H26,EmployeeInformation[],11,FALSE),"") -> $20.00 | E32: Other Regular Deduction | F32: =IFERROR(VLOOKUP(H26,EmployeeInformation[],12,FALSE),"") -> 0 | G32: Gross Pay | H32: =IFERROR(VLOOKUP(H26,PayrollCalculator[],8,FALSE),"") -> $560.00
C33: Total Taxes and Regular Deductions | D33: =IFERROR(SUM(F30:F32)+SUM(D30:D32),"") -> $233.08 | E33: Other Deduction | F33: =IFERROR(VLOOKUP(H26,PayrollCalculator[],10,FALSE),"") -> $20.00 | G33: Total Taxes and Deductions | H33: =IFERROR(IFERROR(VLOOKUP(H26,PayrollCalculator[],9,FALSE),"")+F33,"") -> $253.08
G34: Net Pay | H34: =IFERROR(VLOOKUP(H26,PayrollCalculator[],11,FALSE),"") -> $306.92
C38: =('Employee information'!$A$2) -> [Company Name]
C39: Period: | D39: ='Payroll calculator'!$H$2 -> 4230400.00% | E39: Employee Name | F39: =IFERROR(VLOOKUP(H39,EmployeeInformation[],2),"") ->  | G39: Employee ID
C41: Tax Status | D41: =IFERROR(VLOOKUP(H39,EmployeeInformation[],4),"") ->  | E41: Federal Allowance (From W-4) | F41: =IFERROR(VLOOKUP(H39,EmployeeInformation[],5,FALSE),"") ->  | G41: Hours Worked | H41: =IFERROR(VLOOKUP(H39,PayrollCalculator[],3,FALSE),"") -> 
C42: Hourly Rate | D42: =IFERROR(VLOOKUP(H39,EmployeeInformation[],3,FALSE),"") ->  | E42: Overtime Rate | F42: =IFERROR(VLOOKUP(H39,PayrollCalculator[],7,FALSE),"") ->  | G42: Sick Hours | H42: =IFERROR(VLOOKUP(H39,PayrollCalculator[],5,FALSE),"") -> 
C43: Social Security Tax | D43: =IFERROR(IFERROR(VLOOKUP(H39,EmployeeInformation[],8,FALSE),"")*H45,"") ->  | E43: Federal Income Tax | F43: =IFERROR(IFERROR(VLOOKUP(H39,EmployeeInformation[],7,FALSE),"")*H45,"") ->  | G43: Vacation Hours | H43: =IFERROR(VLOOKUP(H39,PayrollCalculator[],4,FALSE),"") -> 
C44: Medicare Tax | D44: =IFERROR(IFERROR(VLOOKUP(H39,EmployeeInformation[],9,FALSE),"")*H45,"") ->  | E44: State Tax | F44: =IFERROR(IFERROR(VLOOKUP(H39,EmployeeInformation[],6,FALSE),"")*H45,"") ->  | G44: Overtime Hours | H44: =IFERROR(VLOOKUP(H39,PayrollCalculator[],6,FALSE),"") -> 
C45: Insurance Deduction | D45: =IFERROR(VLOOKUP(H39,EmployeeInformation[],11,FALSE),"") ->  | E45: Other Regular Deduction | F45: =IFERROR(VLOOKUP(H39,EmployeeInformation[],12,FALSE),"") ->  | G45: Gross Pay | H45: =IFERROR(VLOOKUP(H39,PayrollCalculator[],8,FALSE),"") -> 
C46: Total Taxes and Regular Deductions | D46: =IFERROR(SUM(F43:F45)+SUM(D43:D45),"") -> 0 | E46: Other Deduction | F46: =IFERROR(VLOOKUP(H39,PayrollCalculator[],10,FALSE),"") ->  | G46: Total Taxes and Deductions | H46: =IFERROR(IFERROR(VLOOKUP(H39,PayrollCalculator[],9,FALSE),"")+F46,"") -> 
G47: Net Pay | H47: =IFERROR(VLOOKUP(H39,PayrollCalculator[],11,FALSE),"") -> 
